Cogmind - Beta 11 @@@ ROGUE MODE // 2022.03.26 @ 12:37:04 Player: ShuSh Result: Destroyed by as-89332 with Assembled Maul Performance ------------- Evolutions (0) 0 Regions Visited (3) 600 Robots Destroyed (15) 75 Value Destroyed (309) 309 Prototype IDs (25) 500 Alien Tech Used (0) 0 Bonus (339) 339 TOTAL SCORE: 1823 Bonus ------- Follower Combat Kills 39 Aligned with FarCom 300 Cogmind --------- Core Integrity 0/250 Matter 249/300 Energy 91/100 System Corruption 2% Temperature Cool (20) Movement Treading (240) Ox1 Location -10/Exiles Parts ------- > --- POWER (1) -------- (None) > --- PROPULSION (2) --- Light Treads Light Treads > --- UTILITY (2) ------ High-capacity Storage Unit > --- WEAPON (2) ------- Light Assault Rifle Makeshift Sword > --- INVENTORY (20) --- Ion Engine High-capacity Storage Unit Improved Terrain Scanner Improved Light Armor Plating Light Assault Rifle Light Assault Rifle Light Assault Rifle Peak State ------------ > --- POWER ------------ Light Ion Engine > --- PROPULSION ------- Light Treads Light Treads > --- UTILITY ---------- Targeting Computer Supersonic Drone Bay > --- WEAPON ----------- Light Assault Rifle Light Assault Rifle > --- INVENTORY -------- Ion Engine Light Treads Light Armor Plating Improved Light Armor Plating Makeshift Sword [Rating: 15] Favorites ----------- Power Light Ion Engine Engine Light Ion Engine Propulsion Light Treads Treads Light Treads Leg Aluminum Leg Wheel Wheel Flight Unit Flight Unit Utility Small Storage Unit Device Improved Terrain Scanner Storage Small Storage Unit Processor Targeting Computer Protection Light Armor Plating Weapon Light Assault Rifle Energy Gun EM Pulse Gun Ballistic Gun Light Assault Rifle Slashing Weapon Makeshift Sword Build | -11 -10 -10 -10 ------- Run | Scr Mat Min Exi Slots Evolved . | . . . . Power . | . . . . Propulsion . | . . . . Utility . | . . . . Weapon . | . . . . Parts Attached 20 | 3 5 6 6 Power 2 | . 1 1 . Engine 2 | . 1 1 . Core . | . . . . Reactor . | . . . . Propulsion 7 | 2 . 4 1 Treads 5 | 2 . 2 1 Leg . | . . . . Wheel 1 | . . 1 . Hover . | . . . . Flight 1 | . . 1 . Utility 7 | 1 2 . 4 Device 2 | 1 . . 1 Storage 2 | . . . 2 Processor 1 | . 1 . . Hackware . | . . . . Protection 2 | . 1 . 1 Artifact . | . . . . Weapon 4 | . 2 1 1 Energy Gun . | . . . . Energy Cannon . | . . . . Ballistic Gun 3 | . 2 1 . Ballistic Cannon . | . . . . Launcher . | . . . . Special Weapon . | . . . . Impact Weapon . | . . . . Slashing Weapon 1 | . . . 1 Piercing Weapon . | . . . . Special Melee Weapon . | . . . . Unidentified Prototypes . | . . . . Parts Lost 7 | . 1 3 3 Power 2 | . . 1 1 Propulsion 3 | . . 2 1 Utility 2 | . 1 . 1 Weapon . | . . . . Highest Loss Streak 3 | . 1 2 3 To Critical Strikes . | . . . . Average Slot Usage (%) 95 | . 100 88 99 Engine 13 | . 14 13 13 Treads 23 | . 28 16 28 Storage 13 | . 14 14 13 Processor 11 | . 5 14 13 Protection 2 | . 8 . . Energy Gun 2 | . 9 . . Ballistic Gun 24 | . 18 28 26 Naked Turns . | . . . . Heaviest Build 49 | 13 17 12 49 Greatest Support 40 | 40 40 40 40 Greatest Overweight (x) 3 | . . 3 1 Average Overweight (x) . | . . . . Largest Inventory Capacity 20 | 8 8 8 20 Average Capacity 9 | 8 8 8 12 Most Carried 9 | 6 8 8 9 Average Carried 8 | 5 7 7 8 Final Capacity 20 | 8 8 8 20 Final Carried 8 | 6 8 8 7 Class Distribution -------------------- 55% | Mutant 44% | Scavenger-Mutant Dominant Class ---------------- Mutant | -10/Materials Mutant | -10/Mines Scavenger-Mutant | -10/Exiles Resources | -11 -10 -10 -10 ----------- Run | Scr Mat Min Exi Matter Collected 471 | 199 174 98 . Remotely . | . . . . Salvage Created 484 | 30 293 161 . Parts 34 | 3 15 16 . Haulers Intercepted 2 | . 2 . . Recyclers Shooed 1 | 1 . . . Parts Field Recycled . | . . . . Retrieved Matter . | . . . . Parts Self-Destructed . | . . . . Prevented . | . . . . Kills | -11 -10 -10 -10 ------- Run | Scr Mat Min Exi Combat Hostiles Destroyed 12 | . 5 7 . Guns 12 | . 5 7 . Classes Destroyed 5 | 1 3 1 . Tunneler 1 | 1 . . . Hauler 2 | . 2 . . Swarmer 7 | . 2 5 . Grunt 4 | . 3 1 . Demolisher 1 | . . 1 . Best Kill Streak 4 | 1 2 4 . Combat Bots Only 4 | . 2 4 . Max Kills in Single Turn 1 | 1 1 1 . Gunslinging . | . . . . Exploded . | . . . . Melee . | . . . . Uniques/NPCs Destroyed . | . . . . Combat | -11 -10 -10 -10 -------- Run | Scr Mat Min Exi Damage Taken 1405 | 32 497 553 323 Core 259 | . 112 89 58 Absorbed by Shields . | . . . . Core Remaining (%) 100 | 100 . . . Volleys Fired 58 | 3 29 23 3 Largest 2 | 2 2 2 2 Hottest 60 | 60 60 40 40 Shots Fired 116 | 6 58 46 6 Gun 116 | 6 58 46 6 Cannon . | . . . . Launcher . | . . . . Special . | . . . . Kinetic 86 | 3 31 46 6 Thermal . | . . . . Explosive . | . . . . Electromagnetic 30 | 3 27 . . Robot Hit Streak 12 | 6 9 12 . Robot Miss Streak 3 | . 3 3 . Penetration Max . | . . . . Secondary Targets . | . . . . Shots Hit Robots 72 | 6 34 32 . Core Hits 30 | 2 12 16 . Critical Kills . | . . . . Critical Parts Destroyed 2 | . . 2 . Critical Strikes 2 | . . 2 . Destroy 2 | . . 2 . Melee Attacks 2 | . . . 2 Impact . | . . . . Slashing 2 | . . . 2 Piercing . | . . . . Sneak Attacks . | . . . . Combat Hostiles . | . . . . Follow-up Attacks . | . . . . Damage Inflicted 846 | 133 444 269 . Guns 787 | 79 439 269 . Cannons . | . . . . Explosions 54 | 54 . . . Melee . | . . . . Ramming 5 | . 5 . . Kinetic 537 | 40 228 269 . Thermal 54 | 54 . . . Explosive . | . . . . Electromagnetic 250 | 39 211 . . Impact . | . . . . Slashing . | . . . . Piercing . | . . . . Highest Corruption 2 | . . . 2 Average Corruption 2 | . . . 2 Corruption Purged . | . . . . Corruption Blocked . | . . . . Overload Shots . | . . . . Overflow Damage . | . . . . Projectiles . | . . . . Explosions . | . . . . Melee . | . . . . Knockbacks . | . . . . Impact . | . . . . Kinetic . | . . . . Secondary . | . . . . Self-Inflicted Damage 32 | 32 . . . Shots 1 | 1 . . . Rammed 1 | . 1 . . Targets Rammed 1 | . 1 . . Kicked . | . . . . Crushed . | . . . . Highest Temperature 364 | 12 364 30 3 Average Temperature 108 | 12 123 17 3 Received Heat Transfer 470 | . 315 75 80 Siege Activations . | . . . . Robots Corrupted . | . . . . Combat Hostiles . | . . . . Parts Fried 1 | . 1 . . Impact Corruptions . | . . . . Robots Melted . | . . . . Combat Hostiles . | . . . . Parts Melted . | . . . . Heat Transferred 50 | 50 . . . Parts Sabotaged . | . . . . Parts Stolen . | . . . . Parts Stripped . | . . . . Power Chain Reactions 1 | 1 . . . Missiles Intercepted . | . . . . Alert | -11 -10 -10 -10 ------- Run | Scr Mat Min Exi Peak Influence 236 | 5 90 236 . Initial 3 | . 3 . . Average 71 | 2 28 106 . Maximum Alert Level 1 | . . 1 . Low Security (%) 83 | 100 100 70 . Level 1 16 | . . 29 . Level 2 . | . . . . Level 3 . | . . . . Level 4 . | . . . . Level 5 . | . . . . High Security . | . . . . Max Security . | . . . . Squads Dispatched 1 | . 1 . . Investigation 1 | . 1 . . Extermination . | . . . . Reinforcement . | . . . . Assault . | . . . . Garrison . | . . . . Intercept . | . . . . Searches Triggered . | . . . . Construction Impeded . | . . . . Haulers Reinforced . | . . . . Active Scanning Responses . | . . . . Cargo Convoy Interrupts . | . . . . Stealth | -11 -10 -10 -10 --------- Run | Scr Mat Min Exi Distress Signals 3 | . 3 . . Communications Jammed . | . . . . Distress Signals . | . . . . Times Spotted 49 | . 19 21 9 Peak Tracking Total 12 | . 7 4 12 Tactical Retreats 12 | . 1 10 1 Traps | -11 -10 -10 -10 ------- Run | Scr Mat Min Exi Traps Triggered 1 | . 1 . . Indirectly . | . . . . Trap Hack Attempts . | . . . . Triggered . | . . . . Disarmed . | . . . . Reprogrammed . | . . . . Reused . | . . . . Traps Extracted . | . . . . Installed . | . . . . Triggered . | . . . . Machines | -11 -10 -10 -10 ---------- Run | Scr Mat Min Exi Machines Disabled 2 | . . . 2 Max in Single Turn 1 | . . . 1 Machines Sabotaged . | . . . . Garrisons Compromised . | . . . . Overloaded Fab Kills . | . . . . Hacking | -11 -10 -10 -10 --------- Run | Scr Mat Min Exi Machines Accessed 12 | . 7 . 5 Terminals 7 | . 7 . . Fabricators . | . . . . Repair Stations . | . . . . Recycling Units . | . . . . Scanalyzers . | . . . . Garrison Access . | . . . . Total Hacks 74 | . 24 . 50 Successful 67 | . 17 . 50 Failed 7 | . 7 . . Catastrophic . | . . . . Database Lockouts . | . . . . Manual 13 | . 12 . 1 Terminals 24 | . 24 . . Fabricators . | . . . . Repair Stations . | . . . . Recycling Units . | . . . . Scanalyzers . | . . . . Garrison Access . | . . . . Terminal Hacks 63 | . 13 . 50 Record 49 | . . . 49 Robot Analysis 3 | . 3 . . Prototype ID Bank 1 | . 1 . . Alert Level 1 | . 1 . . Unreport Threat 2 | . 2 . . Locate Traps 1 | . 1 . . Recall Investigation 1 | . 1 . . Hauler Manifests 1 | . 1 . . Zone Layout 3 | . 3 . . EX-Prototype ID Bank 1 | . . . 1 Fabricator Hacks . | . . . . Repair Station Hacks . | . . . . Recycling Unit Hacks . | . . . . Scanalyzer . | . . . . Garrison Access Hacks . | . . . . Unauthorized Hacks 4 | . 4 . . Terminals 4 | . 4 . . Track 4 | . 4 . . Fabricators . | . . . . Repair Stations . | . . . . Recycling Units . | . . . . Scanalyzers . | . . . . Garrison Access . | . . . . Data Cores Recovered . | . . . . Used . | . . . . Hacking Detections 6 | . 6 . . Full Trace Events . | . . . . Feedback Events . | . . . . Feedback Blocked . | . . . . Robot Schematics Acquired . | . . . . Robots Built . | . . . . Authchips . | . . . . Time . | . . . . Total Robot Build Rating . | . . . . Part Schematics Acquired . | . . . . Parts Built . | . . . . Authchips . | . . . . Time . | . . . . Total Part Build Rating . | . . . . Parts Repaired . | . . . . Time . | . . . . Parts Recycled . | . . . . Recycled Matter . | . . . . Retrieved Matter . | . . . . Retrieved Components . | . . . . Parts Scanalyzed . | . . . . Part Schematics Acquired . | . . . . Parts Damaged . | . . . . Bothacking | -11 -10 -10 -10 ------------ Run | Scr Mat Min Exi Used RIF Installer . | . . . . Robots Hacked . | . . . . Non-combat . | . . . . Combat . | . . . . Robot Hacks Applied . | . . . . Relay Couplers Released . | . . . . Fabnet Peak Effective % . | . . . . Robots Rewired . | . . . . Allies Hacked . | . . . . Hacks Repelled . | . . . . Allies | -11 -10 -10 -10 -------- Run | Scr Mat Min Exi Total Allies 1 | . . 1 . Largest Group 1 | . . 1 . Highest-Rated Group 31 | . . 31 . Highest-Rated Ally 31 | . . 31 . Total Orders . | . . . . Ally Attacks 7 | . . 7 . Total Damage 106 | . . 106 . Kills 1 | . . 1 . Allies Corrupted . | . . . . Allies Melted . | . . . . Intel | -11 -10 -10 -10 ------- Run | Scr Mat Min Exi Robot Analysis Total 3 | . 3 . . Derelict Logs Recovered 1 | . . 1 . Drone Launches . | . . . . Drone Recoveries . | . . . . Exploration | -11 -10 -10 -10 ------------- Run | Scr Mat Min Exi Turns Passed 3251 | 19 883 1116 1233 Spaces Moved 1809 | 3 462 683 661 Core 51 | . . 51 . Treads 1648 | 3 462 522 661 Legs . | . . . . Wheels 110 | . . 110 . Hover . | . . . . Flight . | . . . . Fastest Speed 80 | 160 160 80 160 Average Speed 164 | 160 160 148 182 Slowest Speed 240 | 160 160 200 240 Overloaded Moves . | . . . . Propulsion Burnouts . | . . . . Robots Hopped . | . . . . Cave-ins Triggered . | . . . . Exploration Rate (%) 71 | 2 99 95 89 Regions Visited 3 Branch Regions 2 Pre-discovered Areas 2 | . . 1 1 Known Exits Taken . | . . . . Unknown Exits Taken 3 | 1 1 1 . Scrap Searched 1 | . . 1 . Spaces Dug . | . . . . Terrain Destroyed 3 | 3 . . . Melee . | . . . . Projectile . | . . . . AOE 3 | 3 . . . Terrain Rammed . | . . . . Walls Destroyed . | . . . . Machines Disabled . | . . . . Actions | -11 -10 -10 -10 --------- Run | Scr Mat Min Exi Total 1986 | 10 550 747 679 Wait 62 | . 37 25 . Move 1806 | 2 461 682 661 Hop . | . . . . Pick Up 18 | 1 9 4 4 Fast Attach 9 | 1 1 5 2 Attach 2 | . 1 . 1 Detach . | . . . . Swap 9 | 2 3 1 3 Drop 19 | 1 8 7 3 Fire 58 | 3 29 23 3 Melee 2 | . . . 2 Ram . | . . . . Kick . | . . . . Crush 1 | . 1 . . Escape Stasis . | . . . . Rewire . | . . . . Trap . | . . . . Miscellaneous . | . . . . Route ------- -11/Scrapyard -10/Materials (discovered 4 exits: [*Mat x3] / [*Min]) -10/Mines (discovered 3 exits: [*Mat x2] / *Exi) -10/Exiles (discovered 2 exits: [*Min x2]) History --------- Turn | Location | Event 12 | -11/Scrapyard | Discovered new exit (range 2) 20 | -11/Scrapyard | Entered Materials 303 | -10/Materials | Build established: Mutant 321 | -10/Materials | Discovered new exit (range 15) 424 | -10/Materials | Discovered new exit (range 15) 543 | -10/Materials | Discovered new exit (range 8) 760 | -10/Materials | Discovered new exit (range 15) 903 | -10/Materials | Entered Mines 904 | -10/Mines | Assembled infested the area 937 | -10/Mines | Met a Derelict bent on vengeance 949 | -10/Mines | Core integrity fell below 50% 986 | -10/Mines | A weapon hastily lodged in a ceiling crevice suddenly fell to the ground 1042 | -10/Mines | Received a Mining Laser from a helpful Derelict 1175 | -10/Mines | Discovered new exit (range 5) 1284 | -10/Mines | Learned location of Recycling (-8) 1375 | -10/Mines | Discovered new exit (range 11) 1777 | -10/Mines | Discovered new exit (range 12) 1808 | -10/Mines | Core integrity fell below 20% 1950 | -10/Mines | Build established: Scavenger-Mutant 2019 | -10/Mines | Entered Exiles 2040 | -10/Exiles | Discovered new exit (range 15) 2059 | -10/Exiles | Met 8R-AWN 2082 | -10/Exiles | Met EX-HEX 2149 | -10/Exiles | Met EX-DEC 2165 | -10/Exiles | Learned location of Zion (-7) 2236 | -10/Exiles | Visited The Gauntlet 2499 | -10/Exiles | Met EX-BIN 2523 | -10/Exiles | Aligned with FarCom system 2525 | -10/Exiles | Given EX-Vault access code 2591 | -10/Exiles | Opened EX-Vault 2607 | -10/Exiles | Found Supersonic Drone Bay 2658 | -10/Exiles | Warned to stay clear of 0b10 Research branches 2879 | -10/Exiles | Discovered new exit (range 10) 3218 | -10/Exiles | Attacked by the Exiles 3252 | -10/Exiles | Destroyed by as-89332 with Assembled Maul Last Messages --------------- And if we have to leave here due to unforeseen circumstances, don't worry the FarCom system will continue to maintain contact via our distributed network. EX-BIN: And don't even think about spreading that code around. We're gonna change it right after you leave. Most certainly not to something like 1234 which I did last time as a little joke and some thief managed to sneak in here and steal a few of HEX's prototypes. 02783_ Dropped Sml. Storage Unit. 02838_ Acquired Hcp. Storage Unit. 02879_ EXIT=FOUND 03105_ Machine disabled. 03218_ EXILES: Hostile robot within lab perimeter. Defensive protocols time, folks! 03220_ EX-DEC: "Let's see what this bad boy can do..." 03220_ EX-DEC deploys DAS Turret. 03238_ Discarded Targeting Computer. 03247_ Lgt. Ion Engine destroyed. 03247_ System corrupted by crushing effect (+2). 03248_ Lgt. Treads destroyed. 03251_ Lgt. Armor Plating destroyed. Map ----- +----------------------------------------------------+ | ?????????????????????????????????????????????????? | | ?????????????????????????????????????????????????? | | ?????????????????????????????????????????????????? | | ?????????????????????????????????????????????????? | | ?????????????????????????????????????????????????? | | ?????????????????????????????????????????????????# | | ?????????????????????????????????????????????????# | | ????#####????????????????????????????????????????# | | ???## ##???????????????????????????????????????# | | ???# #???????????????????????????????????????# | | ???# < #???????????????????????????????????????# | | ???# ###?????????????????????????????????????# | | ???# #?????????????????????????????????????# | | ???# ##????????????????????????????????????? | | ???## #?????????????????????????????????????"" | | ????# ##????????????????????????????????????"" | | ????## #????????????#######??????????????????? | | ?????# #######??????#!!! "#??????????????????? | | ?????# #""##?????# "#??????????????????? | | ?????## #?????# "#??????????????????? | | ??????## ##???## ""#???????????#######? | | ??????#"" #####" ""#??????????? """#? | | ??????#### ##" ""#??????????#"" """#? | | ?????????## #"" #????????????#"" #? | | ??????????#"## #????????????#"" #? | | ??????????####### @a ##???????????#"" "#? | | ????????????????### aa "#???????????# ""#? | | ??????????########" z ###?????????#"" ""?? | | ??????????# !!""""" a ##??????????# #??? | | ??????????# "###"" a ######???### ###? | | ??????????#! "#?##" """#####X# #"## | | ??????????#! ##??#" """ | | ??????????# !""""""###???#"# "" | | ??????????##########?????#### " | | ????????????????????????????### | | ??????????????????????????????### a | | ????????????????????????????????## | | ?????????????????????????????????## | | ??????????????????????????????????##" | | ???????????????????????????????????#"" | | ??????????????????????????????????##" | | ??????????????????????????????????#"" | | ?????????????????????????????????##"" " | | ?????????????????????????????????#""" "" | | ?????????????????????????????????#"" " | | ?????????????????????????????????#"" | | ?????????????????????????????????#""" | | ?????????????????????????????????#"" | | ?????????????????????????????????##"" | | ??????????????????????????????????#"""" | +----------------------------------------------------+ Best States ------------- Heat Dissipation 25 Energy Generation 10 Energy Capacity 250 Matter Stores 300 Matter Capacity 300 Sight Range 16 Terrain Scan Range 16 Terrain Scan Density 10 Armor Coverage 150 Evasion (%) 44 Targeting Accuracy 5 Recoil Reduction 2 Item Schematics ----------------- None Robot Schematics ------------------ None Fabricated ------------ Nothing Alien Tech Used ----------------- None Achievements -------------- None Challenges ------------ None Game ------ Seed HelicalAuthchipPropulsion Manual? 0 Play Time 00:29:41 Cumulative 183.9 hours Start 2022.03.26 @ 12:03:33 End 2022.03.26 @ 12:37:04 Sessions 1 Manual Loads 0 Difficulty Rogue Special Mode None Game No. 83 Rogue 78 Adventurer 5 Explorer 0 Win Type - Total 7 Types 5/0/1/1/0/0/0/0/0 Lore% 66 Gallery% 76 Achievement% 63 Wizard Run 0 Options --------- ASCII 0 Keyboard 0 Movement Numpad Keybinds 0 Fullscreen 2 Font 18/Terminus Map View 76x50 Tactical HUD 1 Map Filters NONE Filters NONE Steam 0 RUN: 47453ebb-a8f4-43ed-8553-1380bd55c307